bitfinex/quotes_BTCUSD_20251230
["timestamp","ask_amount","ask_price","bid_price","bid_amount"]
[1767109048420,5.12e-05,88739.0,88729.0,0.000549]
[1767109048594,5.12e-05,88739.0,88731.0,0.01127001]
[1767109049113,5.12e-05,88739.0,88729.0,0.55906027]
[1767109049311,0.7264412,88739.0,88729.0,0.05635136]
[1767109049612,5.12e-05,88739.0,88735.0,0.01126951]
[1767109049772,5.12e-05,88739.0,88724.0,0.0112709]
[1767109049978,0.72639,88738.0,88730.0,0.01127014]
[1767109050180,5.12e-05,88739.0,88731.0,0.0114]
[1767109050419,5.12e-05,88739.0,88733.0,0.01126976]
[1767109050625,5.12e-05,88739.0,88731.0,0.02267001]
[1767109050824,5.12e-05,88739.0,88732.0,0.01126989]
[1767109051030,5.12e-05,88739.0,88733.0,0.01126976]
[1767109051233,5.12e-05,88739.0,88732.0,0.01126989]
[1767109051474,5.12e-05,88739.0,88731.0,0.02267001]
[1767109051764,5.12e-05,88739.0,88733.0,0.01126976]
[1767109051947,5.12e-05,88739.0,88732.0,0.01126989]
[1767109052362,5.12e-05,88739.0,88734.0,0.01126963]
[1767109052707,5.12e-05,88739.0,88732.0,0.01126989]
[1767109053121,0.72694,88732.0,88711.0,0.63795]
[1767109053323,0.72639,88720.0,88711.0,0.0114]
[1767109053753,0.72639,88720.0,88700.0,0.01127395]
[1767109053957,0.72639,88720.0,88691.0,0.04512]
[1767109054305,0.72639,88709.0,88687.0,0.0112756]
[1767109054643,0.72639,88709.0,88690.0,0.01127522]
[1767109054815,0.72639,88709.0,88688.0,0.0114]
[1767109054816,0.72639,88709.0,88688.0,0.02267548]
[1767109055175,0.72639,88709.0,88685.0,0.0002]
[1767109055390,0.72639,88709.0,88686.0,0.0114]
[1767109055598,0.72639,88709.0,88693.0,0.01127484]
[1767109055985,0.72639,88709.0,88691.0,0.0226751]
[1767109056191,0.72639,88709.0,88691.0,0.0114]
[1767109056404,0.72639,88709.0,88692.0,0.06764984]
[1767109056635,0.72639,88709.0,88697.0,0.06764578]
[1767109056869,0.71737585,88709.0,88699.0,0.01127408]
[1767109057068,0.71737585,88709.0,88693.0,0.01127484]
[1767109057273,0.71537585,88709.0,88694.0,0.01127471]
[1767109057514,0.71537585,88709.0,88692.0,0.01127497]
[1767109057775,0.71537585,88709.0,88691.0,0.0114]
[1767109057974,0.72584096,88700.0,88684.0,0.0563797]
[1767109058290,0.72584096,88700.0,88686.0,0.0114]
[1767109058291,0.72554128,88700.0,88686.0,0.0114]
[1767109058523,0.72554128,88700.0,88687.0,0.06765358]
[1767109058724,0.72554128,88700.0,88686.0,0.0114]
[1767109058923,0.72554128,88700.0,88689.0,0.01127535]
[1767109059246,0.72554128,88700.0,88687.0,0.0112756]
[1767109059452,0.72554128,88700.0,88688.0,0.01127548]
[1767109059658,0.72554128,88700.0,88689.0,0.01127535]
[1767109059835,0.72554128,88700.0,88687.0,0.0112756]
[1767109060150,0.72639,88699.0,88686.0,0.0114]
[1767109060701,0.72639,88709.0,88688.0,0.06765251]
[1767109060965,0.72639,88709.0,88688.0,0.01127548]
[1767109061561,0.72639,88709.0,88686.0,0.0114]
[1767109061759,0.72639,88699.0,88686.0,0.0114]
[1767109062108,0.72639,88699.0,88685.0,0.0002]
[1767109063938,0.72639,88699.0,88685.0,0.01147586]
[1767109064335,0.72639,88699.0,88685.0,0.0002]
[1767109064739,0.72639,88699.0,88686.0,0.0676543]
[1767109064978,0.72639,88699.0,88693.0,0.01127484]
[1767109065149,0.0114,88702.0,88699.0,0.000549]
[1767109065381,0.72639,88705.0,88702.0,0.00055]
[1767109065531,0.0114,88708.0,88702.0,0.00055]
[1767109065930,0.0114,88708.0,88699.0,0.01127408]
[1767109066136,0.0114,88708.0,88697.0,0.64992]
[1767109066456,0.0114,88708.0,88700.0,0.01127395]
[1767109066683,0.010851,88708.0,88703.0,0.01127357]
[1767109066832,0.010851,88708.0,88697.0,0.64992]
[1767109067045,0.010851,88708.0,88698.0,0.01127421]
[1767109067248,0.74207,88718.0,88707.0,0.01127306]
[1767109067506,0.73067,88718.0,88708.0,0.01127294]
[1767109067651,0.00010665,88720.0,88709.0,0.01127281]
[1767109067852,0.00010665,88720.0,88707.0,0.0676378]
[1767109067853,0.00010665,88720.0,88707.0,0.01127306]
[1767109068022,0.00010665,88720.0,88709.0,0.01127281]
[1767109068224,0.00010665,88720.0,88706.0,0.0114]
[1767109068709,0.00010665,88720.0,88706.0,0.02267319]
[1767109068847,0.00010665,88720.0,88708.0,0.01127294]
[1767109069047,0.00010665,88720.0,88706.0,0.02267319]
[1767109069442,0.73067,88719.0,88706.0,0.02267319]
[1767109069664,0.00010665,88720.0,88710.0,0.01127268]
[1767109069882,0.00010665,88720.0,88708.0,0.01127294]
[1767109070089,0.00010665,88720.0,88709.0,0.01127281]
[1767109070291,0.00010665,88720.0,88710.0,0.01127268]
[1767109070497,0.00010665,88720.0,88709.0,0.01127281]
[1767109070992,0.73067,88719.0,88707.0,0.01127306]
[1767109071197,0.73067,88719.0,88709.0,0.01127281]
[1767109071413,0.73067,88719.0,88710.0,0.01127268]
[1767109071616,0.00010665,88720.0,88710.0,0.01127268]
[1767109071818,0.00010665,88720.0,88709.0,0.01127281]
[1767109072055,0.00010665,88720.0,88706.0,0.0114]
[1767109072257,0.73067,88719.0,88707.0,0.0114]
[1767109072374,0.73067,88719.0,88706.0,0.0114]
[1767109073192,0.73067,88719.0,88705.0,0.01127332]
[1767109073396,0.73067,88719.0,88695.0,0.01127459]
[1767109073602,0.73067,88719.0,88696.0,0.02267446]
[1767109073807,0.73067,88719.0,88697.0,0.01127433]
[1767109074027,0.73067,88719.0,88700.0,0.01127395]
[1767109074230,0.73067,88719.0,88698.0,0.01127421]
[1767109074405,0.73067,88719.0,88699.0,0.01127408]
[1767109074618,0.73067,88709.0,88700.0,0.0114]
[1767109075267,0.72567,88709.0,88700.0,0.0114]
[1767109075422,0.000549,88700.0,88697.0,0.0114]
[1767109075763,0.000549,88700.0,88687.0,0.6725956]
[1767109075764,0.73067,88704.0,88685.0,0.0002]
[1767109075964,0.71387,88694.0,88680.0,0.0114]
[1767109076114,0.70137139,88694.0,88680.0,0.0114]
[1767109076314,0.70137139,88694.0,88684.0,0.0002]
[1767109076915,0.70137139,88694.0,88680.0,0.0114]
[1767109078442,0.70137139,88694.0,88675.0,0.01127713]
[1767109078443,0.70137139,88694.0,88678.0,0.0114]
[1767109079014,0.70137139,88694.0,88674.0,0.00057725]
[1767109079216,0.73252,88677.0,88665.0,0.000443]
[1767109080140,0.0114,88681.0,88665.0,0.000443]
[1767109080335,0.0002,88684.0,88675.0,0.01127713]
[1767109080642,0.0002,88704.0,88687.0,0.0112756]
[1767109080643,0.73252,88699.0,88687.0,0.0112756]
[1767109080843,0.73252,88699.0,88683.0,0.0114]
[1767109081452,0.73252,88699.0,88683.0,0.02267611]
[1767109081683,0.73252,88699.0,88683.0,0.0114]
[1767109082102,0.73252,88699.0,88684.0,0.01127599]
[1767109082305,0.0114,88700.0,88689.0,0.01127535]
[1767109082504,0.0114,88700.0,88688.0,0.01127548]
[1767109082745,0.0114,88700.0,88686.0,0.01127573]
[1767109082887,1e-08,88704.0,88701.0,0.06764298]
[1767109083087,0.73252,88722.0,88710.0,0.06763547]
[1767109083290,0.74392,88726.0,88711.0,0.01127255]
[1767109083672,0.74392,88726.0,88710.0,0.01127268]
[1767109083869,0.73252,88726.0,88710.0,0.0114]
[1767109084072,0.73262667,88726.0,88711.0,0.01127255]
[1767109084314,0.73262667,88726.0,88710.0,0.02267268]
[1767109084970,0.73262667,88726.0,88710.0,0.0114]
[1767109085126,0.73252,88724.0,88697.0,0.01127433]
[1767109085478,0.73252,88714.0,88701.0,0.06764248]
[1767109085686,0.73252,88724.0,88714.0,0.00075]
[1767109085883,0.73252,88724.0,88702.0,0.67613]
[1767109086114,0.73252,88724.0,88702.0,0.0112737]
[1767109086317,0.73252,88724.0,88704.0,0.01127344]
[1767109086484,0.73252,88724.0,88703.0,0.01127357]
[1767109086721,0.73252,88724.0,88704.0,0.01127344]
[1767109086886,0.73252,88724.0,88706.0,0.01127319]
[1767109087093,0.73252,88724.0,88704.0,0.01127344]
[1767109087303,0.73252,88724.0,88703.0,0.0114]
[1767109087536,0.73252,88724.0,88703.0,0.02267357]
[1767109087770,0.73252,88724.0,88707.0,0.01127306]
[1767109088172,0.73252,88724.0,88705.0,0.01127332]
[1767109088375,0.80123781,88720.0,88703.0,0.0114]
[1767109088511,0.73252,88719.0,88703.0,0.0114]
[1767109089255,0.73252,88719.0,88704.0,0.01127344]
[1767109089452,0.73252,88719.0,88705.0,0.01127332]
[1767109089775,0.73252,88719.0,88706.0,0.01127319]
[1767109090218,0.73252,88719.0,88703.0,0.0114]
[1767109090354,0.73252,88719.0,88703.0,0.01127357]
[1767109090559,0.73252,88719.0,88703.0,0.0114]
[1767109091263,0.73252,88719.0,88706.0,0.01127319]
[1767109091436,0.73252,88719.0,88703.0,0.0677673]
[1767109091647,0.73252,88719.0,88704.0,0.01127344]
[1767109091868,0.000199,88704.0,88697.0,0.68740433]
[1767109092095,0.73252,88712.0,88703.0,0.0114]
[1767109092458,0.73252,88712.0,88697.0,0.67613]
[1767109092691,0.73252,88712.0,88698.0,0.0114]
[1767109092883,0.73252,88712.0,88692.0,0.67613]
[1767109093002,0.00010667,88726.0,88690.0,0.06765083]
[1767109093003,0.80123781,88710.0,88690.0,0.06765083]
[1767109093208,0.73252,88709.0,88692.0,0.01127497]
[1767109093590,0.73252,88709.0,88691.0,0.0226751]
[1767109093718,0.73252,88709.0,88691.0,0.0114]
[1767109094157,0.000199,88691.0,88686.0,0.0114]
[1767109094534,0.000199,88691.0,88689.0,0.05637625]
[1767109094730,0.73252,88701.0,88690.0,0.01127522]
[1767109094935,0.0114,88702.0,88701.0,0.00035]
[1767109095337,0.0114,88702.0,88696.0,0.01127446]
[1767109095741,0.0114,88702.0,88695.0,0.01127459]
[1767109095947,0.01105,88702.0,88694.0,0.06764819]
[1767109096148,0.01105,88702.0,88694.0,0.01127471]
[1767109096383,0.73252,88707.0,88696.0,0.01127446]
[1767109096524,0.0114,88709.0,88699.0,0.01127408]
[1767109096726,0.01150665,88709.0,88706.0,0.01127319]
[1767109096931,0.00010665,88709.0,88704.0,0.73148344]
[1767109097294,0.00010665,88709.0,88705.0,0.01127332]
[1767109097633,0.00010665,88709.0,88706.0,0.06763853]
[1767109097903,0.00010665,88709.0,88707.0,0.77657483]
[1767109098079,0.00010665,88709.0,88707.0,0.72021]
[1767109098906,0.00010665,88709.0,88706.0,0.01123157]
[1767109099262,0.00010665,88709.0,88694.0,0.22549256]
[1767109099263,0.0011,88706.0,88697.0,0.01127433]
[1767109099464,0.73193,88706.0,88698.0,0.0114]
[1767109099663,0.73083,88706.0,88698.0,0.0114]
[1767109099846,0.00010665,88709.0,88698.0,0.0114]
[1767109100087,0.00010665,88709.0,88706.0,0.01127319]
[1767109100282,0.74223,88721.0,88708.0,0.05636455]
[1767109100485,0.74223,88721.0,88708.0,0.01127294]
[1767109101128,0.74223,88721.0,88709.0,0.01127281]
[1767109101306,0.74223,88721.0,88708.0,0.01127294]
[1767109101711,0.74223,88721.0,88711.0,0.01127255]
[1767109101912,0.74223,88721.0,88708.0,0.0676376]
[1767109102113,0.74223,88721.0,88711.0,0.01127255]
[1767109102426,0.74223,88721.0,88710.0,0.01127268]
[1767109102611,0.74223,88721.0,88708.0,0.01127294]
[1767109103439,0.73083,88732.0,88717.0,0.01127179]
[1767109103592,0.73083,88730.0,88718.0,0.05635834]
[1767109103993,0.73083,88730.0,88719.0,0.01127154]
[1767109104446,0.73083,88730.0,88722.0,0.01127116]
[1767109104596,0.00010669,88732.0,88724.0,0.0112709]
[1767109104804,0.00055,88724.0,88715.0,0.06763181]
[1767109105003,0.00055,88724.0,88716.0,0.02263192]
[1767109105211,0.73083,88723.0,88716.0,0.02263192]
[1767109105409,0.73083,88723.0,88716.0,0.01136]
[1767109105723,0.0300086,88749.0,88726.0,0.01127065]
[1767109105921,0.73103,88746.0,88727.0,0.7201]
[1767109106134,0.73103,88746.0,88728.0,0.01127039]
[1767109106334,0.73103,88746.0,88732.0,0.01126989]
[1767109106558,0.73103,88746.0,88728.0,0.7201]
[1767109106762,0.73083,88742.0,88728.0,0.7201]
[1767109106960,0.73083,88742.0,88726.0,0.01127065]
[1767109107162,0.73083,88742.0,88728.0,0.02263039]
[1767109107522,0.73083,88742.0,88729.0,0.01127027]
[1767109107775,0.73083,88742.0,88730.0,0.01127014]
[1767109107935,0.73083,88742.0,88728.0,0.01136]
[1767109108142,0.73083,88742.0,88728.0,0.01076616]
[1767109108579,0.74219,88742.0,88728.0,0.01076616]
[1767109108730,0.74219,88742.0,88728.0,0.02203655]
[1767109108934,0.74219,88742.0,88725.0,0.01136]
[1767109109135,0.00055,88725.0,88722.0,0.01127116]
[1767109109353,0.00055,88725.0,88722.0,0.00010669]
[1767109109588,0.73083,88728.0,88722.0,0.01137785]
[1767109109789,0.73083,88741.0,88722.0,0.00010669]
[1767109109935,0.73083,88734.0,88722.0,0.00010669]
[1767109110136,0.73083,88734.0,88707.0,0.06763784]
[1767109110390,0.01136,88735.0,88709.0,0.01127281]
[1767109110391,0.73083,88721.0,88709.0,0.01127281]
[1767109110612,0.01136,88726.0,88721.0,0.00055]
[1767109110738,0.00010665,88726.0,88721.0,0.01127128]
[1767109111367,0.00010665,88726.0,88718.0,0.01127166]
[1767109111579,0.00010665,88726.0,88719.0,0.01127154]
[1767109111776,0.00010665,88726.0,88717.0,0.01127179]
[1767109111777,0.00010665,88726.0,88717.0,0.02263179]
[1767109111975,0.00010665,88726.0,88720.0,0.01127141]
[1767109112177,0.00010665,88726.0,88719.0,0.01127154]
[1767109112490,0.00010665,88726.0,88721.0,0.01127128]
[1767109112726,0.00010665,88726.0,88720.0,0.01127141]
[1767109112945,0.00010665,88726.0,88718.0,0.06762984]
[1767109112946,0.00010665,88726.0,88719.0,0.01127154]
[1767109113092,0.73083,88725.0,88717.0,0.01136]
[1767109113293,0.00055,88719.0,88711.0,0.01127255]
[1767109113622,0.00055,88719.0,88710.0,0.01127268]
[1767109113757,0.73083,88725.0,88711.0,0.01127255]
[1767109113961,0.73083,88725.0,88713.0,0.0112723]
[1767109114166,0.73083,88725.0,88708.0,0.01127294]
[1767109114167,0.73083,88722.0,88686.0,0.72021]
[1767109114362,0.01136,88724.0,88686.0,0.72021]
[1767109114363,0.73083,88709.0,88686.0,0.72021]
[1767109114586,0.74219,88709.0,88687.0,0.01136]
[1767109115667,0.74219,88709.0,88677.0,0.01158128]
[1767109115799,0.00055,88687.0,88679.0,0.02263662]
[1767109116006,0.73083,88693.0,88682.0,0.01127624]
[1767109116206,0.73083,88693.0,88680.0,0.05638198]
[1767109116207,0.73083,88693.0,88680.0,0.06765847]
[1767109116441,0.73083,88693.0,88681.0,0.01127637]
[1767109116640,0.73083,88693.0,88679.0,0.02263662]
[1767109116817,0.73083,88693.0,88679.0,0.01136]
[1767109117016,0.73083,88693.0,88679.0,0.01171589]
[1767109117428,0.01136,88696.0,88682.0,0.01127624]
[1767109117646,0.01136,88696.0,88682.0,0.05638118]
[1767109117868,0.74219,88696.0,88685.0,0.01127586]
[1767109118080,0.74219,88696.0,88679.0,0.06809882]
[1767109118226,0.74219,88696.0,88679.0,0.01171589]
[1767109118687,0.74219,88696.0,88680.0,0.72021]
[1767109119180,0.74219,88696.0,88680.0,0.73148649]
[1767109119385,0.74219,88696.0,88680.0,0.01127649]
[1767109119627,0.73083,88679.0,88677.0,0.0003044]
[1767109119829,0.73083,88679.0,88677.0,1.05e-06]
[1767109120466,0.74219,88684.0,88677.0,1.05e-06]
[1767109120615,0.74219,88684.0,88666.0,0.01136]
[1767109120820,0.74219,88684.0,88666.0,0.02274493]
[1767109121024,0.73083,88679.0,88666.0,0.00010665]
[1767109121209,0.73083,88676.0,88664.0,0.0002]
[1767109121411,0.01136,88676.0,88667.0,0.01127815]
[1767109121608,0.01136,88676.0,88664.0,0.0002]
[1767109121817,0.01136,88676.0,88665.0,0.0112784]
[1767109122013,0.74219,88676.0,88664.0,0.0002]
[1767109122612,0.74219,88676.0,88664.0,0.01147853]
[1767109123227,0.74219,88676.0,88664.0,0.0002]
[1767109123360,0.73083,88706.0,88676.0,0.000656]
[1767109123567,0.01136,88705.0,88680.0,0.73224649]
[1767109123767,0.73083,88704.0,88681.0,0.72097]
[1767109123965,0.73083,88699.0,88678.0,0.01127675]
[1767109124188,0.73083,88699.0,88675.0,0.73224713]
[1767109124392,0.73083,88699.0,88678.0,0.01127675]
[1767109124599,0.73083,88699.0,88674.0,0.02263726]
[1767109124983,0.73083,88699.0,88675.0,0.01127713]
[1767109125188,0.73083,88697.0,88676.0,0.022677]
[1767109125736,0.73083,88697.0,88677.0,0.01127688]
[1767109126025,0.73083,88697.0,88676.0,0.022677]
[1767109126265,0.73083,88697.0,88674.0,0.01127726]
[1767109126469,0.0114,88698.0,88671.0,0.01127764]
[1767109126470,0.71115,88689.0,88671.0,0.01127764]
[1767109126672,0.71115,88687.0,88669.0,0.02267789]
[1767109127305,0.71115,88687.0,88669.0,0.0114]
[1767109127514,0.000443,88669.0,88664.0,0.0002]
[1767109127746,0.71115,88668.0,88664.0,0.0002]
[1767109128577,0.711044,88668.0,88664.0,0.0002]
[1767109130862,0.711044,88668.0,88656.0,0.0003542]
[1767109131023,0.711044,88668.0,88657.0,0.01127942]
[1767109131453,0.711044,88668.0,88656.0,0.0003542]
[1767109131884,0.711044,88668.0,88656.0,5.2e-06]
[1767109132642,0.0114,88669.0,88656.0,5.2e-06]
[1767109132643,0.71115,88665.0,88656.0,5.2e-06]
[1767109134478,0.71115,88665.0,88647.0,0.00016226]
[1767109134664,0.71115,88665.0,88647.0,0.00026911]
[1767109135107,0.71115,88659.0,88634.0,0.0117142]
[1767109135268,0.71115,88649.0,88634.0,0.0117142]
[1767109135471,0.72251,88649.0,88637.0,0.0002]
[1767109137390,0.72251,88649.0,88634.0,4.2e-06]
[1767109137605,0.0002,88657.0,88637.0,0.68466]
[1767109137606,0.0114,88648.0,88637.0,0.68466]
[1767109137814,0.0002,88644.0,88641.0,0.06768876]
[1767109138068,0.0002,88657.0,88647.0,0.05640344]
[1767109138291,0.0114,88651.0,88643.0,0.06768707]
[1767109138591,0.0114,88651.0,88642.0,0.68466]
[1767109138909,0.0114,88651.0,88642.0,0.01128133]
[1767109138910,0.69705,88650.0,88642.0,0.01128133]
[1767109139116,0.0114,88651.0,88641.0,0.73373146]
[1767109139311,0.0114,88651.0,88648.0,0.01128057]
[1767109139466,0.0114,88653.0,88650.0,0.01128031]
[1767109139801,0.0114,88653.0,88647.0,0.01128069]
[1767109140002,0.0114,88653.0,88648.0,0.06768303]
[1767109140203,0.0114,88656.0,88652.0,0.01128006]
[1767109140411,0.0114,88657.0,88655.0,0.01127967]
[1767109140565,0.69705,88672.0,88661.0,0.05639456]
[1767109140770,0.69705,88672.0,88647.0,0.54675566]
[1767109140771,0.69705,88670.0,88647.0,0.0002]
[1767109140969,0.69705,88660.0,88647.0,0.00030661]
[1767109141173,0.69705,88667.0,88651.0,0.01128018]
[1767109141370,0.0114,88666.0,88650.0,0.01128031]
[1767109141571,0.0114,88666.0,88650.0,0.73373031]
[1767109141974,0.69705,88667.0,88652.0,0.01128006]
[1767109142177,0.0114,88666.0,88652.0,0.01128006]
[1767109142581,0.0114,88666.0,88650.0,0.73373031]
[1767109142795,0.0114,88665.0,88651.0,0.01128018]
[1767109143195,0.0114,88665.0,88652.0,0.01128006]
[1767109143492,0.69705,88667.0,88650.0,0.72245]
[1767109143493,0.0114,88664.0,88659.0,0.01127917]
[1767109143692,0.0114,88664.0,88658.0,0.01127929]
[1767109144094,0.0114,88664.0,88657.0,0.01127942]
[1767109144716,0.0114,88664.0,88656.0,0.01127955]
[1767109144918,0.0114,88664.0,88654.0,0.72245]
[1767109145240,0.0114,88664.0,88652.0,0.01128006]
[1767109145241,0.000549,88654.0,88647.0,0.7340373]
[1767109145568,0.0114,88664.0,88650.0,0.72245]
[1767109145975,0.0114,88664.0,88653.0,0.01127993]
[1767109146176,0.0114,88664.0,88652.0,0.72245]
[1767109147934,0.0114,88664.0,88649.0,0.01128044]
[1767109148172,0.70845,88664.0,88649.0,0.01128044]
[1767109148470,0.70845,88664.0,88651.0,0.01128018]
[1767109148874,0.70845,88664.0,88652.0,0.01128006]
[1767109149301,0.70845,88664.0,88651.0,0.01128018]
[1767109149503,0.70845,88664.0,88650.0,0.01128031]
[1767109149753,0.70845,88664.0,88648.0,0.01128057]
[1767109150079,0.70845,88664.0,88649.0,0.01128044]
[1767109150289,0.70845,88664.0,88650.0,0.01128031]
[1767109150497,0.70845,88664.0,88649.0,0.01128044]
[1767109151540,0.70845,88664.0,88650.0,0.01128031]
[1767109152139,0.70845,88664.0,88649.0,0.01128044]
[1767109152612,0.69705,88681.0,88662.0,0.73372878]
[1767109152813,0.0002392,88682.0,88650.0,0.55795566]
[1767109152814,0.0002392,88682.0,88676.0,0.011277]
[1767109153117,0.0002392,88682.0,88675.0,0.73372713]
[1767109153427,0.0002392,88682.0,88676.0,0.011277]
[1767109153748,0.0002392,88682.0,88678.0,0.01127675]
[1767109153985,0.0002392,88682.0,88679.0,0.01127662]
[1767109154200,0.69705,88692.0,88681.0,0.01127637]
[1767109154406,0.0114,88686.0,88682.0,0.01127624]
[1767109155066,0.0114,88686.0,88681.0,0.01127637]
[1767109155271,0.0114,88686.0,88679.0,0.01127662]
[1767109155960,0.0114,88686.0,88681.0,0.01127637]
[1767109156205,0.0114,88691.0,88681.0,0.72208637]
[1767109156908,0.0114,88691.0,88682.0,0.01127624]
[1767109157098,0.0114,88691.0,88683.0,0.01127611]
[1767109157320,0.00030679,88692.0,88685.0,0.01127586]
[1767109157516,0.00030679,88692.0,88687.0,0.01087559]
[1767109157690,0.00030679,88692.0,88685.0,0.01127586]
[1767109157877,0.00030679,88692.0,88682.0,0.71081]
[1767109158078,0.00030679,88692.0,88682.0,0.72208624]
[1767109158275,0.00030679,88692.0,88683.0,0.01127611]
[1767109158675,0.00030679,88692.0,88686.0,0.01127573]
[1767109158946,0.00030679,88692.0,88684.0,0.01127599]
[1767109159158,0.00030679,88692.0,88683.0,0.01127611]
[1767109159359,0.00030679,88692.0,88682.0,0.71081]
[1767109159565,0.70153679,88692.0,88680.0,0.01127649]
[1767109159766,0.70153679,88692.0,88679.0,0.01127662]
[1767109160586,0.70153679,88692.0,88676.0,0.011277]
[1767109160794,0.70153679,88692.0,88678.0,0.01127675]
[1767109161435,0.70153679,88692.0,88679.0,0.01127662]
[1767109161650,0.70153679,88692.0,88680.0,0.01127649]
[1767109161983,0.70153679,88692.0,88679.0,0.01127662]
[1767109161984,0.70153679,88692.0,88679.0,0.06765923]
[1767109162194,0.70153679,88692.0,88679.0,0.01127662]
[1767109162597,0.70153679,88692.0,88678.0,0.01127675]
[1767109163033,0.70153679,88692.0,88679.0,0.01127662]
[1767109163772,0.70153679,88692.0,88680.0,0.01127649]
[1767109163940,0.71293679,88692.0,88682.0,0.01127624]
[1767109164156,0.71293679,88692.0,88681.0,0.01127637]
[1767109164317,0.71293679,88692.0,88675.0,0.0114]
[1767109164318,0.01170679,88692.0,88678.0,0.71081]
[1767109164540,0.70123,88714.0,88694.0,0.72177471]
[1767109164744,0.70123,88714.0,88680.0,0.54655566]
[1767109164745,0.70158589,88714.0,88700.0,0.55720215]
[1767109164947,0.70158589,88714.0,88698.0,0.7105]
[1767109164948,0.71298589,88714.0,88706.0,0.01127319]
[1767109165153,0.01175589,88714.0,88707.0,0.01127306]
[1767109165371,0.01175589,88714.0,88706.0,0.01127319]
[1767109165576,0.01175589,88714.0,88707.0,0.01127306]
[1767109166014,0.01175589,88714.0,88703.0,0.72177357]
[1767109166219,0.01175589,88714.0,88704.0,0.01127344]
[1767109166413,0.000549,88704.0,88703.0,0.7105]
[1767109166616,0.00055,88703.0,88695.0,0.0114]
[1767109166846,0.00055,88703.0,88695.0,0.7219]
[1767109167217,0.70123,88712.0,88695.0,0.0114]
[1767109169106,0.70123,88712.0,88688.0,0.72197548]
[1767109169296,0.70123,88712.0,88694.0,0.01136]
[1767109170233,0.70123,88712.0,88694.0,0.02263471]
[1767109170391,0.70123,88712.0,88695.0,0.01127459]
[1767109170551,0.01175589,88714.0,88695.0,0.01127459]
[1767109170552,0.71298589,88714.0,88699.0,0.72177408]
[1767109170764,0.71298589,88714.0,88694.0,0.01136]
[1767109171401,0.71298589,88714.0,88688.0,0.0002]
[1767109171402,0.70123,88709.0,88688.0,0.0002]
[1767109171574,0.001099,88694.0,88688.0,0.0002]
[1767109171777,0.70123,88702.0,88688.0,0.0002]
[1767109172358,0.71259,88707.0,88689.0,0.7105]
[1767109172684,0.71259,88707.0,88689.0,0.72177535]
[1767109172878,0.71259,88707.0,88694.0,0.01127471]
[1767109173095,0.71259,88707.0,88692.0,0.7105]
[1767109173756,0.71259,88707.0,88691.0,0.0112751]
[1767109174137,0.71259,88707.0,88696.0,0.01127446]
[1767109174527,0.71259,88707.0,88693.0,0.01127484]
[1767109174728,0.71259,88707.0,88694.0,0.01127471]
[1767109175032,0.01136,88707.0,88696.0,0.76687232]
[1767109175412,0.01136,88707.0,88696.0,0.72177446]
[1767109175605,0.01136,88707.0,88695.0,0.01127459]
[1767109176187,0.71259,88707.0,88691.0,0.7105]
[1767109176587,0.71259,88707.0,88690.0,0.01127522]
[1767109176588,0.00011411,88714.0,88701.0,0.01127383]
[1767109176829,0.70134411,88714.0,88702.0,0.0112737]
[1767109177071,0.70134411,88714.0,88698.0,0.01136]
[1767109177605,0.70134411,88714.0,88699.0,0.01127408]
[1767109177788,0.70134411,88714.0,88698.0,0.02263421]
[1767109177990,0.70134411,88714.0,88700.0,0.01127395]
[1767109178190,0.70134411,88714.0,88699.0,0.01127408]
[1767109178602,0.70134411,88714.0,88700.0,0.01127395]
[1767109178961,0.70134411,88714.0,88698.0,0.01136]
[1767109179118,0.70134411,88714.0,88691.0,0.69914]
[1767109179119,0.000549,88700.0,88692.0,0.01136]
[1767109179529,0.70123,88704.0,88692.0,0.01136]
[1767109180019,0.70123,88704.0,88688.0,0.0002]
[1767109180218,0.70123,88704.0,88689.0,0.01136]
[1767109181234,0.70123,88704.0,88689.0,0.02263535]
[1767109181462,0.70123,88704.0,88689.0,0.01136]
[1767109181978,0.70123,88704.0,88689.0,0.02263535]
[1767109182172,0.70123,88704.0,88694.0,0.01127471]
[1767109182430,0.70123,88704.0,88690.0,0.05637557]
[1767109182431,0.70123,88704.0,88692.0,0.01127497]
[1767109182680,1.24778566,88710.0,88694.0,0.01127471]
[1767109182906,0.70123,88709.0,88693.0,0.01127484]
[1767109183112,0.70123,88709.0,88694.0,0.01127471]
[1767109183413,0.70123,88709.0,88691.0,0.0112751]
[1767109184130,0.70123,88709.0,88690.0,0.01127522]
[1767109184846,0.70123,88709.0,88692.0,0.01127497]
[1767109185079,0.70123,88709.0,88691.0,0.69914]
[1767109185309,0.70123,88709.0,88691.0,0.7104151]
[1767109185971,0.70123,88709.0,88691.0,0.69914]
[1767109186196,0.70123,88709.0,88691.0,0.7104151]
[1767109186418,0.70123,88709.0,88692.0,0.01127497]
[1767109186647,0.70123,88709.0,88688.0,0.0002]
[1767109186877,0.000549,88692.0,88688.0,0.0002]
[1767109187131,0.01136,88704.0,88688.0,0.71006548]
[1767109187600,0.01136,88704.0,88690.0,0.69859]
[1767109188846,0.01136,88704.0,88688.0,0.0002]
[1767109189048,0.01136,88704.0,88688.0,0.69879]
[1767109189288,0.01136,88704.0,88690.0,0.01127522]
[1767109189488,0.00011411,88714.0,88704.0,0.000549]
[1767109189489,0.72141,88711.0,88704.0,0.000549]
[1767109189690,0.01136,88710.0,88694.0,0.70986471]
[1767109189903,0.01136,88710.0,88696.0,0.01127446]
[1767109190074,0.01136,88710.0,88697.0,0.70986433]
[1767109190290,0.01136,88710.0,88697.0,0.69859]
[1767109191266,0.00011411,88714.0,88707.0,0.70986306]
[1767109191267,4.11e-06,88714.0,88707.0,0.70986306]
[1767109191475,4.11e-06,88714.0,88704.0,0.02263344]
[1767109191824,4.11e-06,88714.0,88704.0,0.01136]
[1767109192764,4.11e-06,88714.0,88705.0,0.64126]
[1767109195687,0.000549,88705.0,88698.0,0.01136]
[1767109195893,0.000549,88705.0,88698.0,0.01081]
[1767109196958,0.000549,88705.0,88690.0,0.01127522]
[1767109196959,0.000549,88705.0,88691.0,0.0112751]
[1767109197124,0.000549,88705.0,88691.0,0.0226351]
[1767109197483,0.000549,88705.0,88688.0,0.0002]
[1767109197484,0.721959,88705.0,88688.0,0.0002]
[1767109197684,0.721959,88705.0,88689.0,0.01136]
[1767109197890,0.54655566,88700.0,88689.0,0.01136]
[1767109198070,0.72141,88699.0,88689.0,0.01136]